bitfinex/quotes_BTCUSD_20250615
["timestamp","ask_amount","ask_price","bid_price","bid_amount"]
[1750013175050,7.16754666,105690.0,105680.0,97.23041747]
[1750013175261,7.26369588,105690.0,105680.0,97.23041747]
[1750013180666,7.00925398,105690.0,105680.0,97.23041747]
[1750013180876,7.19848664,105690.0,105680.0,97.23041747]
[1750013184123,7.80364699,105690.0,105680.0,97.23041747]
[1750013185065,7.83194323,105690.0,105680.0,97.23041747]
[1750013186849,6.97771366,105690.0,105680.0,97.23041747]
[1750013187065,7.10233742,105690.0,105680.0,97.23041747]
[1750013190650,7.13063366,105690.0,105680.0,97.26651747]
[1750013191967,7.13063366,105690.0,105680.0,97.24871747]
[1750013195377,7.13063366,105690.0,105680.0,97.26761747]
[1750013199833,5.92031296,105690.0,105680.0,97.26761747]
[1750013200054,7.13063366,105690.0,105680.0,97.26761747]
[1750013200743,6.93863366,105690.0,105680.0,97.26761747]
[1750013200963,7.13063366,105690.0,105680.0,97.26761747]
[1750013208858,7.02391053,105690.0,105680.0,97.26761747]
[1750013209077,7.02391053,105690.0,105680.0,97.24871747]
[1750013209303,7.05236253,105690.0,105680.0,97.24871747]
[1750013209518,7.06182398,105690.0,105680.0,97.24871747]
[1750013209746,7.06182398,105690.0,105680.0,97.23041747]
[1750013218051,6.73879557,105690.0,105680.0,97.23041747]
[1750013220090,7.07879557,105690.0,105680.0,97.23041747]
[1750013220975,7.71225216,105690.0,105680.0,97.23041747]
[1750013221198,7.7916531,105690.0,105680.0,97.23041747]
[1750013221418,7.79170254,105690.0,105680.0,97.23041747]
[1750013223721,7.81080254,105690.0,105680.0,97.23041747]
[1750013224413,7.20564219,105690.0,105680.0,97.23041747]
[1750013226699,7.01364219,105690.0,105680.0,97.23041747]
[1750013226928,7.20564219,105690.0,105680.0,97.23041747]
[1750013227409,7.18654219,105690.0,105680.0,97.23041747]
[1750013229419,7.79170254,105690.0,105680.0,97.23041747]
[1750013229630,7.84484339,105690.0,105680.0,96.79381443]
[1750013231782,8.11780339,105690.0,105680.0,96.79381443]
[1750013232189,8.11780339,105690.0,105680.0,96.35721139]
[1750013240228,7.51264304,105690.0,105680.0,96.35721139]
[1750013240674,7.4332421,105690.0,105680.0,96.35721139]
[1750013240887,7.4143421,105690.0,105680.0,96.35721139]
[1750013241106,7.2026421,105690.0,105680.0,96.35721139]
[1750013241317,7.36629642,105690.0,105680.0,96.35721139]
[1750013242116,7.3946421,105690.0,105680.0,96.35721139]
[1750013242533,7.29879132,105690.0,105680.0,96.35721139]
[1750013242740,7.49079132,105690.0,105680.0,96.35721139]
[1750013242957,7.29879132,105690.0,105680.0,96.35721139]
[1750013243159,7.49079132,105690.0,105680.0,96.35721139]
[1750013245325,7.31403932,105690.0,105680.0,96.35721139]
[1750013246848,6.9649301,105690.0,105680.0,96.37681139]
[1750013249770,6.9679301,105690.0,105680.0,96.37581139]
[1750013249981,6.9699301,105690.0,105680.0,96.37581139]
[1750013250418,6.74958442,105690.0,105680.0,96.39601139]
[1750013250646,6.94154442,105690.0,105680.0,96.39601139]
[1750013252302,7.03769364,105690.0,105680.0,96.39601139]
[1750013253865,6.84573364,105690.0,105680.0,96.39601139]
[1750013254124,7.03769364,105690.0,105680.0,96.39601139]
[1750013255232,7.06603932,105690.0,105680.0,96.39601139]
[1750013262417,6.74350641,105690.0,105680.0,96.39601139]
[1750013262847,6.93273907,105690.0,105680.0,96.39601139]
[1750013264261,6.96108475,105690.0,105680.0,96.39601139]
[1750013264680,6.93273907,105690.0,105680.0,96.39601139]
[1750013265307,6.96108475,105690.0,105680.0,96.39601139]
[1750013265512,7.05721373,105690.0,105680.0,96.37581139]
[1750013268490,7.05721373,105690.0,105680.0,96.35621139]
[1750013273150,6.96106451,105690.0,105680.0,96.35621139]
[1750013278377,6.76910451,105690.0,105680.0,96.35621139]
[1750013278588,6.96102451,105690.0,105680.0,96.35621139]
[1750013280966,6.76910451,105690.0,105680.0,96.35621139]
[1750013281177,6.96102451,105690.0,105680.0,96.35621139]
[1750013281816,7.05717373,105690.0,105680.0,96.35621139]
[1750013282974,6.86525373,105690.0,105680.0,96.35621139]
[1750013283192,7.05717373,105690.0,105680.0,96.35621139]
[1750013283868,7.02884829,105690.0,105680.0,96.35621139]
[1750013284090,7.05719325,105690.0,105680.0,96.35621139]
[1750013284494,6.86527325,105690.0,105680.0,96.35621139]
[1750013287214,6.76912403,105690.0,105680.0,96.35621139]
[1750013287659,6.70105732,105690.0,105680.0,96.35621139]
[1750013287878,6.71051877,105690.0,105680.0,96.35621139]
[1750013288095,6.71051877,105690.0,105680.0,96.37821139]
[1750013290736,6.71051877,105690.0,105680.0,96.40121139]
[1750013291188,0.29993587,105690.0,105680.0,96.40121139]
[1750013291447,1.41401481,105690.0,105680.0,96.40121139]
[1750013291662,1.75401481,105690.0,105680.0,96.40121139]
[1750013292331,1.74901481,105690.0,105680.0,96.40121139]
[1750013292764,1.75001481,105690.0,105680.0,96.40121139]
[1750013295843,1.75001481,105690.0,105680.0,97.00637174]
[1750013295844,0.20915547,105690.0,105680.0,97.00637174]
[1750013296063,0.20915547,105690.0,105680.0,96.40121139]
[1750013296282,0.54915547,105690.0,105680.0,96.40121139]
[1750013296517,0.20915547,105690.0,105680.0,96.40121139]
[1750013296734,1.14485446,105690.0,105680.0,96.40121139]
[1750013297828,1.14385446,105690.0,105680.0,96.40121139]
[1750013298292,1.14385446,105690.0,105680.0,96.40321139]
[1750013298530,1.14485446,105690.0,105680.0,96.40821139]
[1750013300625,0.53969411,105690.0,105680.0,96.40821139]
[1750013300855,1.14485446,105690.0,105680.0,96.40821139]
[1750013301557,1.14485446,105690.0,105680.0,96.50436061]
[1750013301789,0.53969411,105690.0,105680.0,96.40821139]
[1750013302022,1.14485446,105690.0,105680.0,96.40821139]
[1750013306038,1.75001481,105690.0,105680.0,96.40821139]
[1750013306498,1.75001481,105690.0,105680.0,96.36321139]
[1750013306499,6.77874079,105690.0,105680.0,96.36321139]
[1750013306743,6.82514079,105690.0,105680.0,96.36321139]
[1750013307410,6.72899157,105690.0,105680.0,96.36121139]
[1750013308052,6.72799157,105690.0,105680.0,96.35621139]
[1750013308479,6.72799157,105690.0,105680.0,96.35821139]
[1750013325320,6.68159157,105690.0,105680.0,96.35821139]
[1750013330339,5.47127087,105690.0,105680.0,96.35821139]
[1750013330579,6.68159157,105690.0,105680.0,96.38041139]
[1750013331427,6.49235891,105690.0,105680.0,96.38041139]
[1750013331653,6.68159157,105690.0,105680.0,96.38041139]
[1750013334242,6.87363157,105690.0,105680.0,96.38041139]
[1750013334699,6.68159157,105690.0,105680.0,96.38041139]
[1750013335161,6.87379157,105690.0,105680.0,96.38041139]
[1750013339662,6.87379157,105690.0,105680.0,96.37841139]
[1750013339873,6.87479157,105690.0,105680.0,96.37841139]
[1750013340084,6.87479157,105690.0,105680.0,96.37941139]
[1750013345642,6.87479157,105690.0,105680.0,96.35721139]
[1750013355724,6.52533012,105690.0,105680.0,96.35721139]
[1750013355935,6.53479157,105690.0,105680.0,96.35721139]
[1750013357782,6.87479157,105690.0,105680.0,96.35721139]
[1750013364810,6.68259157,105690.0,105680.0,96.35721139]
[1750013365045,6.87455157,105690.0,105680.0,96.35721139]
[1750013365669,6.87455157,105690.0,105680.0,96.38131139]
[1750013366603,5.47227087,105690.0,105680.0,96.38131139]
[1750013366842,0.73169411,105690.0,105680.0,96.40521139]
[1750013367070,1.14485446,105690.0,105680.0,96.4229811]
[1750013367304,1.33697446,105690.0,105680.0,96.40521139]
[1750013367773,1.33697446,105690.0,105680.0,96.40421139]
[1750013367993,1.33597446,105690.0,105680.0,96.42197982]
[1750013368216,1.33597446,105690.0,105680.0,96.42498012]
[1750013368434,1.33597446,105690.0,105680.0,96.42498013]
[1750013368654,1.33597446,105690.0,105680.0,96.40721139]
[1750013369170,1.33597446,105690.0,105680.0,96.42497997]
[1750013369381,1.33597446,105690.0,105680.0,96.40721139]
[1750013370038,1.33597446,105690.0,105680.0,96.42497985]
[1750013370234,1.33597446,105690.0,105680.0,96.42497996]
[1750013370483,1.33597446,105690.0,105680.0,96.42498002]
[1750013371125,1.33597446,105690.0,105680.0,96.40721139]
[1750013371344,1.18293446,105690.0,105680.0,96.57857954]
[1750013371584,1.18293446,105690.0,105680.0,96.56081139]
[1750013371838,1.18293446,105690.0,105680.0,96.57857896]
[1750013372057,1.18293446,105690.0,105680.0,96.57857903]
[1750013372303,1.18293446,105690.0,105680.0,96.65696061]
[1750013372521,1.18293446,105690.0,105680.0,96.56081139]
[1750013374147,0.57777411,105690.0,105680.0,96.56081139]
[1750013374365,1.18293446,105690.0,105680.0,96.56081139]
[1750013375698,0.57777411,105690.0,105680.0,96.56081139]
[1750013375919,1.18293446,105690.0,105680.0,96.56081139]
[1750013376501,0.34946145,105690.0,105680.0,96.56081139]
[1750013376751,0.20815529,105690.0,105680.0,97.3552223]
[1750013376993,0.20815529,105690.0,105680.0,96.57027391]
[1750013377209,0.20815529,105690.0,105680.0,96.56081139]
[1750013377425,0.20815529,105690.0,105680.0,96.75952438]
[1750013377639,0.21761692,105690.0,105680.0,96.75652447]
[1750013377861,0.21861692,105690.0,105680.0,96.56281139]
[1750013378114,0.55861692,105690.0,105680.0,96.76152438]
[1750013378329,0.01992263,105690.0,105680.0,96.76352438]
[1750013378547,0.01992263,105690.0,105680.0,96.85030371]
[1750013378760,0.02938426,105690.0,105680.0,96.85976614]
[1750013378978,0.02938426,105690.0,105680.0,96.86922848]
[1750013379196,0.36938426,105690.0,105680.0,96.86922848]
[1750013379418,0.55761692,105690.0,105680.0,96.65605315]
[1750013379627,0.55761692,105690.0,105680.0,96.66851567]
[1750013379843,0.55761692,105690.0,105680.0,96.67151567]
[1750013380270,0.55761692,105690.0,105680.0,96.87022866]
[1750013380692,0.36838426,105690.0,105680.0,96.879691]
[1750013381404,0.36838426,105690.0,105680.0,96.87022866]
[1750013382171,0.35892209,105690.0,105680.0,96.86076623]
[1750013382402,0.36838354,105690.0,105680.0,96.87969082]
[1750013382616,0.37784508,105690.0,105680.0,96.87022866]
[1750013382829,0.36838354,105690.0,105680.0,96.87022866]
[1750013383050,0.36838354,105690.0,105680.0,96.879691]
[1750013383262,0.56707783,105690.0,105680.0,96.87022866]
[1750013383686,0.56707783,105690.0,105680.0,96.86076623]
[1750013384421,0.56707783,105690.0,105680.0,96.87022866]
[1750013384638,0.56707783,105690.0,105680.0,96.67151567]
[1750013385398,0.56707783,105690.0,105680.0,96.66205315]
[1750013386201,1.17223818,105690.0,105680.0,96.50845315]
[1750013386407,1.15331609,105690.0,105680.0,96.66209315]
[1750013387054,1.14385464,105690.0,105680.0,96.66209315]
[1750013387279,1.14385464,105690.0,105680.0,96.50845315]
[1750013387731,1.14385464,105690.0,105680.0,96.66205315]
[1750013389205,0.53869429,105690.0,105680.0,96.66205315]
[1750013389405,1.14385464,105690.0,105680.0,96.66205315]
[1750013394612,1.14385464,105690.0,105680.0,96.50845315]
[1750013394859,1.14385464,105690.0,105680.0,96.66193315]
[1750013395759,1.14385464,105690.0,105680.0,96.50845315]
[1750013395981,1.14385464,105690.0,105680.0,96.66193315]
[1750013399645,1.13439301,105690.0,105680.0,96.66193315]
[1750013405753,1.13439301,105690.0,105680.0,96.69035971]
[1750013410399,1.13439301,105690.0,105680.0,96.53687971]
[1750013410617,1.73955336,105690.0,105680.0,96.36421139]
[1750013410831,1.78795336,105690.0,105680.0,96.51745139]
[1750013411470,1.78795336,105690.0,105680.0,96.36421139]
[1750013411684,1.78795336,105690.0,105680.0,96.51753139]
[1750013412108,1.78795336,105690.0,105680.0,96.36421139]
[1750013412335,1.78795336,105690.0,105680.0,96.51753139]
[1750013415645,1.63423981,105690.0,105680.0,96.51753139]
[1750013415850,1.44795336,105690.0,105680.0,96.51753139]
[1750013416702,1.44795336,105690.0,105680.0,96.51749139]
[1750013422201,1.44795336,105690.0,105680.0,96.51741139]
[1750013424410,1.39955336,105690.0,105680.0,96.51741139]
[1750013430226,1.73955336,105690.0,105680.0,96.51741139]
[1750013432362,1.73955336,105690.0,105680.0,96.51729139]
[1750013443716,0.52923266,105690.0,105680.0,96.51729139]
[1750013443927,0.54815583,105690.0,105680.0,96.66013315]
[1750013444164,1.16277745,105690.0,105680.0,96.66013315]
[1750013444366,0.97354407,105690.0,105680.0,96.68855971]
[1750013444585,0.97354407,105690.0,105680.0,96.70748466]
[1750013444788,0.97354407,105690.0,105680.0,96.88727279]
[1750013445013,0.97354407,105690.0,105680.0,96.89673522]
[1750013445242,0.97354407,105690.0,105680.0,96.89673504]
[1750013445444,0.97354407,105690.0,105680.0,96.90619721]
[1750013446058,0.97354407,105690.0,105680.0,96.89673504]
[1750013446262,0.62408262,105690.0,105680.0,96.91565929]
[1750013446687,0.62408262,105690.0,105680.0,96.90619721]
[1750013446890,0.63354407,105690.0,105680.0,96.90619721]
[1750013448142,0.63354407,105690.0,105680.0,96.89673504]
[1750013448344,0.63354407,105690.0,105680.0,96.90619721]
[1750013448554,0.62408262,105690.0,105680.0,96.90619721]
[1750013448777,0.61462135,105690.0,105680.0,96.90619721]
[1750013448988,0.62408262,105690.0,105680.0,96.90619721]
[1750013449321,0.62408262,105690.0,105680.0,96.89673504]
[1750013449527,0.62408262,105690.0,105680.0,96.90619712]
[1750013449816,0.62408262,105690.0,105680.0,96.91565911]
[1750013450568,0.62408262,105690.0,105680.0,96.90619712]
[1750013451366,0.62408262,105690.0,105680.0,96.88727279]
[1750013451574,0.64300552,105690.0,105680.0,96.89673504]
[1750013451977,0.64300552,105690.0,105680.0,96.88727279]
[1750013452182,0.63354398,105690.0,105680.0,96.90619738]
[1750013452389,0.64300552,105690.0,105680.0,96.90619738]
[1750013452817,0.63354398,105690.0,105680.0,96.90619738]
[1750013453018,0.63354398,105690.0,105680.0,96.91565955]
[1750013453226,0.64300552,105690.0,105680.0,96.89673513]
[1750013453734,0.64300552,105690.0,105680.0,96.90619738]
[1750013453935,0.64300552,105690.0,105680.0,96.89673513]
[1750013454375,0.64300552,105690.0,105680.0,96.90619738]
[1750013454917,0.64300552,105690.0,105680.0,96.89673513]
[1750013456090,0.64300552,105690.0,105680.0,96.90619738]
[1750013456300,0.64300552,105690.0,105680.0,96.89673513]
[1750013456485,0.64300552,105690.0,105680.0,96.89673522]
[1750013457428,0.64300552,105690.0,105680.0,96.90619756]
[1750013457658,0.64300552,105690.0,105680.0,96.89673522]
[1750013457870,0.83223818,105690.0,105680.0,96.88727279]
[1750013458983,0.83223818,105690.0,105680.0,96.89673522]
[1750013460816,0.84169981,105690.0,105680.0,96.89673522]
[1750013461964,0.84169981,105690.0,105680.0,96.88727279]
[1750013462184,0.84169981,105690.0,105680.0,96.89673522]
[1750013462389,0.84169981,105690.0,105680.0,96.68855971]
[1750013462390,0.82277754,105690.0,105680.0,96.68855971]
[1750013463358,0.82277754,105690.0,105680.0,96.89673522]
[1750013463574,0.82277754,105690.0,105680.0,96.88727279]
[1750013463774,0.82277754,105690.0,105680.0,96.68855971]
[1750013464655,0.81331618,105690.0,105680.0,96.68855971]
[1750013466925,0.80881618,105690.0,105680.0,96.68855971]
[1750013468611,0.80881618,105690.0,105680.0,96.66013315]
[1750013469674,0.80881618,105690.0,105680.0,96.68855971]
[1750013470102,0.80881618,105690.0,105680.0,96.71700271]
[1750013471413,0.80881618,105690.0,105680.0,96.81315193]
[1750013471643,0.80881618,105690.0,105680.0,96.71700271]
[1750013471859,1.44901499,105690.0,105680.0,96.67024271]
[1750013472066,1.44901499,105690.0,105680.0,96.54557439]
[1750013476093,1.40451499,105690.0,105680.0,96.54557439]
[1750013477030,1.40451499,105690.0,105680.0,96.57400095]
[1750013478300,1.39505336,105690.0,105680.0,96.57400095]
[1750013479966,1.40451481,105690.0,105680.0,96.57400095]
[1750013480585,1.40451481,105690.0,105680.0,96.59690095]
[1750013480811,1.40451481,105690.0,105680.0,96.60636347]
[1750013481018,1.40451481,105690.0,105680.0,96.59690095]
[1750013481228,0.80385446,105690.0,105680.0,96.59690095]
[1750013482449,0.80385446,105690.0,105680.0,96.60636347]
[1750013482655,0.63354461,105690.0,105680.0,96.80507637]
[1750013482890,0.82277727,105690.0,105680.0,96.80507646]
[1750013484132,0.82277727,105690.0,105680.0,96.60636347]
[1750013484538,0.82277727,105690.0,105680.0,96.59690095]
[1750013485566,0.82277727,105690.0,105680.0,96.57400095]
[1750013488351,0.82277727,105690.0,105680.0,96.59700095]
[1750013488967,0.82277727,105690.0,105680.0,96.59699015]
[1750013489307,0.81331609,105690.0,105680.0,96.59699015]
[1750013489816,0.80385464,105690.0,105680.0,96.59699015]
[1750013490546,0.80385464,105690.0,105680.0,96.57399015]
[1750013490997,1.40901499,105690.0,105680.0,96.57399015]
[1750013492356,0.80385464,105690.0,105680.0,96.57399015]
[1750013492706,1.40901499,105690.0,105680.0,96.57399015]
[1750013496222,0.80385464,105690.0,105680.0,96.57399015]
[1750013499849,0.5789284,105690.0,105680.0,96.57399263]
[1750013500207,1.39955336,105690.0,105680.0,96.54557439]
[1750013501313,0.79439301,105690.0,105680.0,96.54557439]
[1750013501664,0.79439301,105690.0,105680.0,96.51713139]
[1750013502647,1.39955336,105690.0,105680.0,96.51713139]
[1750013504307,0.79439301,105690.0,105680.0,96.51713139]
[1750013506239,1.39955336,105690.0,105680.0,96.51713139]
[1750013507042,1.42265336,105690.0,105680.0,96.51713139]
[1750013507253,1.44535336,105690.0,105680.0,96.51713139]
[1750013512361,1.44535336,105690.0,105680.0,96.36421139]
[1750013512721,1.44535336,105690.0,105680.0,96.51709139]
[1750013515655,1.42265336,105690.0,105680.0,96.51709139]
[1750013516372,1.42265336,105690.0,105680.0,96.36421139]
[1750013516576,1.42265336,105690.0,105680.0,96.51709139]
[1750013516780,1.44495336,105690.0,105680.0,96.51709139]
[1750013516983,1.2557207,105690.0,105680.0,96.51709139]
[1750013517248,1.44495336,105690.0,105680.0,96.51709139]
[1750013517904,1.44495336,105690.0,105680.0,96.36421139]
[1750013517905,1.78495336,105690.0,105680.0,96.36421139]
[1750013518133,1.95504629,105690.0,105680.0,96.36421139]
[1750013518357,1.93783336,105690.0,105680.0,96.36421139]
[1750013519049,1.93783336,105690.0,105680.0,96.36121139]
[1750013519280,6.87041012,105690.0,105680.0,96.36321139]
[1750013519518,6.87041012,105690.0,105680.0,96.35821139]
[1750013519731,6.87041012,105690.0,105680.0,96.36121139]
[1750013520866,7.57171969,105690.0,105680.0,95.92460835]
[1750013521337,7.58626054,105690.0,105680.0,95.92460835]
[1750013521770,7.58626054,105690.0,105680.0,95.92260835]
[1750013522188,7.58726054,105690.0,105680.0,95.92260835]
[1750013522414,7.58726054,105690.0,105680.0,95.91960835]
[1750013522827,7.58926054,105690.0,105680.0,95.91960835]
[1750013527013,7.34023132,105690.0,105680.0,95.91960835]
[1750013527251,7.34023132,105690.0,105680.0,95.93738024]
[1750013527252,6.92707097,105690.0,105680.0,95.93738024]
[1750013527493,6.92707097,105690.0,105680.0,95.93738019]
[1750013527905,6.92707097,105690.0,105680.0,95.93738014]
[1750013528119,6.92707097,105690.0,105680.0,95.9373802]
[1750013528371,6.92707097,105690.0,105680.0,95.91960835]
[1750013528879,6.92707097,105690.0,105680.0,95.93738022]
[1750013529085,6.92707097,105690.0,105680.0,95.93738021]
[1750013529304,6.92707097,105690.0,105680.0,95.93738015]
[1750013529744,6.92707097,105690.0,105680.0,95.93738016]
[1750013529945,6.92707097,105690.0,105680.0,95.93738012]
[1750013530498,6.92707097,105690.0,105680.0,95.91960835]
[1750013530948,6.92707097,105690.0,105680.0,95.93738015]
[1750013531487,6.92707097,105690.0,105680.0,95.93738001]
[1750013531682,6.92707097,105690.0,105680.0,95.93738009]
[1750013532200,6.92707097,105690.0,105680.0,95.93738001]
[1750013532668,6.92707097,105690.0,105680.0,95.93738007]
[1750013532867,6.92707097,105690.0,105680.0,95.93738009]
[1750013533132,6.92707097,105690.0,105680.0,95.91960835]
[1750013533339,6.91253012,105690.0,105680.0,95.91960835]
[1750013534719,6.91253012,105690.0,105680.0,95.93737864]
[1750013534940,6.91253012,105690.0,105680.0,95.93737862]
[1750013535363,6.91253012,105690.0,105680.0,95.91960835]
[1750013535947,7.00867934,105690.0,105680.0,95.93737862]
[1750013536147,7.00867934,105690.0,105680.0,95.93737871]
[1750013536394,6.91253012,105690.0,105680.0,95.91960835]
[1750013536590,6.91253012,105690.0,105680.0,95.93737874]
[1750013536801,6.91253012,105690.0,105680.0,95.91960835]
[1750013537753,6.91253012,105690.0,105680.0,95.93737879]
[1750013538165,6.91253012,105690.0,105680.0,95.93737872]
[1750013538365,6.91253012,105690.0,105680.0,95.91960835]
[1750013538568,6.91253012,105690.0,105680.0,95.93737873]
[1750013538774,6.91253012,105690.0,105680.0,95.93737877]
[1750013539204,6.91253012,105690.0,105680.0,95.93737885]
[1750013539411,6.91253012,105690.0,105680.0,95.91960835]
[1750013539615,7.00867934,105690.0,105680.0,95.93737891]
[1750013539817,7.00867934,105690.0,105680.0,95.93737894]
[1750013540025,7.00867934,105690.0,105680.0,95.91960835]
[1750013540207,7.00867934,105690.0,105680.0,95.9373791]
[1750013540686,7.00867934,105690.0,105680.0,95.93737913]
[1750013540902,7.00867934,105690.0,105680.0,95.91960835]
[1750013541107,7.00867934,105690.0,105680.0,95.93737912]
[1750013541316,7.00867934,105690.0,105680.0,95.93737913]
[1750013541752,7.00867934,105690.0,105680.0,95.93737915]
[1750013541928,7.00867934,105690.0,105680.0,95.93737914]
[1750013542157,7.00867934,105690.0,105680.0,95.91960835]
[1750013543004,7.00867934,105690.0,105680.0,95.93737912]
[1750013543410,7.00867934,105690.0,105680.0,95.91960835]
[1750013543617,7.00867934,105690.0,105680.0,95.93737912]
[1750013543825,7.00867934,105690.0,105680.0,95.93737911]
[1750013544869,7.00867934,105690.0,105680.0,95.91960835]
[1750013545072,7.00867934,105690.0,105680.0,95.93737912]
[1750013545276,7.00867934,105690.0,105680.0,95.91960835]
[1750013545451,7.00867934,105690.0,105680.0,95.93737911]
[1750013545756,7.00867934,105690.0,105680.0,95.91960835]
[1750013547225,7.00867934,105690.0,105680.0,95.93735999]
[1750013547646,7.00867934,105690.0,105680.0,95.91960835]
[1750013548086,7.00867934,105690.0,105680.0,95.93735999]
[1750013548438,7.00867934,105690.0,105680.0,95.91960835]
[1750013548660,7.00867934,105690.0,105680.0,95.93735999]
[1750013548860,7.00867934,105690.0,105680.0,95.91960835]
[1750013549124,7.00867934,105690.0,105680.0,95.93735999]
[1750013549355,7.00867934,105690.0,105680.0,95.93736]
[1750013549559,7.00867934,105690.0,105680.0,95.91960835]
[1750013549764,7.00867934,105690.0,105680.0,95.93736001]
[1750013549972,7.00867934,105690.0,105680.0,95.91960835]
[1750013550175,7.00867934,105690.0,105680.0,95.93736002]
[1750013551197,7.00867934,105690.0,105680.0,95.91960835]
[1750013551398,7.00867934,105690.0,105680.0,95.93736002]
[1750013551827,7.00867934,105690.0,105680.0,95.91960835]
[1750013552031,7.00867934,105690.0,105680.0,95.93736002]
[1750013552453,7.00867934,105690.0,105680.0,95.91960835]
[1750013552675,7.03705604,105690.0,105680.0,95.93736002]
[1750013552901,7.03705604,105690.0,105680.0,95.93736036]
[1750013553124,7.03705604,105690.0,105680.0,95.93736055]
[1750013553307,7.03705604,105690.0,105680.0,95.91960835]
[1750013555254,7.03705604,105690.0,105680.0,95.93736055]
[1750013555492,7.03705604,105690.0,105680.0,95.91960835]
[1750013555904,7.03705604,105690.0,105680.0,95.93736055]
[1750013556281,7.03705604,105690.0,105680.0,95.91960835]
[1750013556511,7.03705604,105690.0,105680.0,95.93736054]
[1750013556941,7.03705604,105690.0,105680.0,95.91960835]
[1750013563197,7.03705604,105690.0,105680.0,95.93737988]
[1750013563413,7.03705604,105690.0,105680.0,95.91960835]
[1750013563626,7.03705604,105690.0,105680.0,95.93737988]
[1750013564038,7.03705604,105690.0,105680.0,95.91960835]
[1750013564676,7.05159689,105690.0,105680.0,95.9373799]
[1750013564901,7.05159689,105690.0,105680.0,95.91960835]
[1750013565532,7.05159689,105690.0,105680.0,95.93738003]
[1750013565742,7.05159689,105690.0,105680.0,95.91960835]
[1750013565952,7.05159689,105690.0,105680.0,95.9373799]
[1750013566166,7.05159689,105690.0,105680.0,95.91960835]
[1750013566580,7.05159689,105690.0,105680.0,95.93737974]
[1750013567034,7.05159689,105690.0,105680.0,95.9373795]
[1750013567623,7.05159689,105690.0,105680.0,95.93737961]
[1750013568080,7.05159689,105690.0,105680.0,95.91960835]
[1750013568330,7.05159689,105690.0,105680.0,95.93737961]
[1750013568767,7.05159689,105690.0,105680.0,95.93737976]
[1750013569222,7.05159689,105690.0,105680.0,95.93737981]
[1750013569466,7.05159689,105690.0,105680.0,95.91960835]
[1750013569889,7.05159689,105690.0,105680.0,95.93737981]
[1750013570069,7.05159689,105690.0,105680.0,95.9373798]
[1750013570489,7.05159689,105690.0,105680.0,95.93737965]
[1750013570695,7.05159689,105690.0,105680.0,95.91960835]
[1750013570895,7.05159689,105690.0,105680.0,95.93737973]
[1750013571101,7.05159689,105690.0,105680.0,95.93737977]
[1750013571516,7.05159689,105690.0,105680.0,95.93736548]
[1750013571924,7.02819689,105690.0,105680.0,95.93736548]
[1750013572168,7.00619689,105690.0,105680.0,95.95512261]
[1750013572389,5.69972697,105690.0,105680.0,95.95512261]
[1750013572597,6.91004767,105690.0,105680.0,95.93736548]
[1750013572803,6.91004767,105690.0,105680.0,95.95512256]
[1750013573016,6.91004767,105690.0,105680.0,95.93736548]
[1750013573222,6.91006426,105690.0,105680.0,95.95512255]
[1750013573436,6.91006426,105690.0,105680.0,95.95512256]
[1750013573665,7.00621348,105690.0,105680.0,95.93736548]
[1750013573879,7.00621348,105690.0,105680.0,95.95512256]
[1750013574965,7.00621348,105690.0,105680.0,95.93736548]
[1750013575812,7.00621348,105690.0,105680.0,95.95512256]
[1750013576023,7.00621348,105690.0,105680.0,95.93736548]
[1750013576231,7.00621348,105690.0,105680.0,95.95512256]
[1750013576481,7.00621348,105690.0,105680.0,95.93736548]
[1750013577185,7.00621348,105690.0,105680.0,95.95513684]
[1750013577682,5.79589278,105690.0,105680.0,95.97290819]
[1750013577902,6.70352341,105690.0,105680.0,95.99860781]
[1750013578144,6.89552341,105690.0,105680.0,96.00553684]
[1750013578366,6.89552341,105690.0,105680.0,96.02330707]
[1750013578584,6.89552341,105690.0,105680.0,96.02330739]
[1750013578792,6.89552341,105690.0,105680.0,96.00553684]
[1750013579419,6.89552341,105690.0,105680.0,95.99860741]
[1750013579638,6.89552341,105690.0,105680.0,95.99860746]
[1750013579855,6.89552341,105690.0,105680.0,95.98083684]
[1750013580285,6.89552341,105690.0,105680.0,95.99860746]
[1750013580722,6.89552341,105690.0,105680.0,95.98083684]
[1750013582229,6.89552341,105690.0,105680.0,95.99860746]
[1750013582639,6.89552341,105690.0,105680.0,95.99860738]
[1750013583066,6.89552341,105690.0,105680.0,95.99860735]
[1750013583285,6.89552341,105690.0,105680.0,95.99860738]
[1750013583517,6.89552341,105690.0,105680.0,95.98083684]
[1750013583730,6.89552341,105690.0,105680.0,95.9986074]
[1750013583968,6.89552341,105690.0,105680.0,95.98083684]
[1750013584159,6.89552341,105690.0,105680.0,96.00413684]
[1750013585724,6.89552341,105690.0,105680.0,96.02190749]
[1750013585934,6.89552341,105690.0,105680.0,96.00413684]
[1750013587014,6.89552341,105690.0,105680.0,96.02190754]
[1750013587854,6.89552341,105690.0,105680.0,95.98083684]
[1750013588718,6.89552341,105690.0,105680.0,95.99860756]
[1750013589338,6.89552341,105690.0,105680.0,95.98083684]
[1750013589471,6.89552341,105690.0,105680.0,95.99860756]
[1750013589904,6.89552341,105690.0,105680.0,95.98083684]
[1750013595205,6.89552341,105690.0,105680.0,95.95513684]
[1750013596679,6.99167263,105690.0,105680.0,95.95513684]
[1750013597801,6.9916883,105690.0,105680.0,95.95513684]
[1750013598220,6.99168851,105690.0,105680.0,95.95513684]
[1750013599488,6.89554009,105690.0,105680.0,95.95513684]
[1750013600248,5.68521939,105690.0,105680.0,95.95513684]
[1750013600455,6.89554009,105690.0,105680.0,95.95513684]
[1750013607534,0.56064263,105690.0,105680.0,96.00003684]
[1750013607748,0.83647301,105690.0,105680.0,96.00003684]
[1750013607963,0.01246127,105690.0,105680.0,96.15295684]
[1750013608172,0.02192182,105690.0,105680.0,96.86382147]
[1750013608378,0.02192182,105690.0,105680.0,97.06253446]
[1750013608594,0.35992182,105690.0,105680.0,96.2491986]
[1750013608811,0.35892173,105690.0,105680.0,96.47513535]
[1750013609018,0.36838273,105690.0,105680.0,96.47183601]
[1750013609243,0.36838273,105690.0,105680.0,96.48959728]
[1750013609450,0.36838273,105690.0,105680.0,96.47183601]
[1750013609659,0.35892173,105690.0,105680.0,96.49906023]
[1750013609870,0.35892173,105690.0,105680.0,96.4907599]
[1750013609871,0.34946082,105690.0,105680.0,96.4907599]
[1750013610296,0.34946082,105690.0,105680.0,96.50852219]
[1750013610500,0.34946082,105690.0,105680.0,96.4907599]
[1750013610706,0.35892182,105690.0,105680.0,96.50852228]
[1750013610910,0.35892182,105690.0,105680.0,96.48959833]
[1750013611113,0.35892182,105690.0,105680.0,96.49906021]
[1750013611319,0.35892182,105690.0,105680.0,96.49906008]
[1750013611524,0.34946082,105690.0,105680.0,96.4907599]
[1750013611951,0.23773745,105710.0,105700.0,0.0479]
[1750013612160,1.19235719,105710.0,105700.0,0.22090462]
[1750013612384,1.19235719,105710.0,105700.0,0.2185386]
[1750013612641,1.19235719,105710.0,105700.0,0.21865893]
[1750013613056,1.19235719,105710.0,105700.0,0.21865977]
[1750013613265,1.19235719,105710.0,105700.0,0.21865998]
[1750013613689,1.19235719,105710.0,105700.0,0.0479]
[1750013614340,1.19535719,105710.0,105700.0,0.0479]